fUST/lending_fUST_20250930
["ID","MTS","AMOUNT","RATE_DAILY","PERIOD"]
[388574337,1759244394655,-189.44378083,0.0005,120]
[388574338,1759244394684,-233.92491258,0.0005,120]
[388574339,1759244394716,-4190.0,0.00050265,120]
[388574340,1759244394748,-486.59,0.00050405,120]
[388574341,1759244394780,-979.0,0.00050588,120]
[388574342,1759244394811,-2156.0,0.00050588,120]
[388574343,1759244394843,-630.0,0.00050588,120]
[388574344,1759244394875,-410.0,0.00050764,120]
[388574345,1759244394906,-2000.0,0.000509,120]
[388574346,1759244394939,-9150.41813642,0.00050926,120]
[388574347,1759244394972,-9150.41813642,0.00050928,120]
[388574348,1759244395003,-4837.15751129,0.00050942,120]
[388574349,1759244395036,-9150.41813642,0.00050961,120]
[388574350,1759244395066,-4837.15751129,0.00050978,120]
[388574351,1759244395100,-9150.41813642,0.00050988,120]
[388574352,1759244395131,-4837.15751129,0.00050993,120]
[388574353,1759244395162,-4837.15751129,0.00050998,120]
[388574354,1759244395193,-1000.0,0.00051,120]
[388574355,1759244395223,-3000.0,0.00051,85]
[388574356,1759244395253,-3000.0,0.0005101,85]
[388574357,1759244395283,-3000.0,0.0005102,85]
[388574358,1759244395311,-3000.0,0.0005103,85]
[388574359,1759244395342,-3000.0,0.0005104,85]
[388574360,1759244395370,-3000.0,0.0005105,85]
[388574361,1759244395399,-3000.0,0.0005106,85]
[388574362,1759244395427,-3000.0,0.0005107,85]
[388574363,1759244395457,-3331.102859,0.0005108,85]
[388574364,1759244395487,-189.44378083,0.000515,120]
[388574365,1759244395518,-233.92491258,0.000515,120]
[388574366,1759244395550,-200.0,0.00052,120]
[388574367,1759244395582,-1000.0,0.00052,120]
[388574368,1759244395616,-1320.48094552,0.00052,120]
[388574369,1759244395884,862.76907899,0.00052045,120]
[388574370,1759244396112,151.0,0.00051755,60]
[388574371,1759244396152,151.0,0.00051755,60]
[388574372,1759244396246,198.0,0.00051755,60]
[388574373,1759244397970,228.87048398,0.00051755,60]
[388574374,1759244399452,500.0,0.00019178,2]
[388574375,1759244399893,151.0,0.00051755,60]
[388574376,1759244400133,151.0,0.00051755,60]
[388574377,1759244400316,224.01437502,0.00051755,60]
[388574378,1759244401655,151.0,0.00051755,60]
[388574379,1759244401896,230.9937208,0.00051755,60]
[388574380,1759244402968,515.0,0.00051755,60]
[388574381,1759244403239,515.0,0.00051755,60]
[388574382,1759244403463,515.0,0.00051755,60]
[388574383,1759244403731,515.0,0.00051755,60]
[388574384,1759244403942,515.0,0.00051755,60]
[388574385,1759244404161,515.0,0.00051755,60]
[388574386,1759244404432,515.0,0.00051755,60]
[388574387,1759244404668,515.0,0.00051755,60]
[388574388,1759244404907,515.0,0.00051755,60]
[388574389,1759244405083,1715668.45291652,0.00052045,120]
[388574390,1759244411206,481.19345705,0.00019178,2]
[388574391,1759244426543,652.36,0.00019178,2]
[388574392,1759244427321,-182.31684207,0.000332,117]
[388574393,1759244427368,-745.70728757,0.00037,120]
[388574394,1759244427413,-151.0,0.00047444,120]
[388574395,1759244427446,-151.0,0.00047444,120]
[388574396,1759244427479,-151.0,0.00047444,120]
[388574397,1759244427514,-151.0,0.00047444,120]
[388574398,1759244427548,-151.0,0.00047444,120]
[388574399,1759244427581,-151.0,0.00047444,120]
[388574400,1759244427616,-182.31684207,0.00049344,120]
[388574401,1759244427650,-151.0,0.00049444,120]
[388574402,1759244427684,-151.0,0.00049444,120]
[388574403,1759244427719,-297.217181,0.00049444,120]
[388574404,1759244427752,-151.0,0.00049444,120]
[388574405,1759244427789,-515.0,0.00051755,60]
[388574406,1759244427823,-515.0,0.00051755,60]
[388574407,1759244427857,-515.0,0.00051755,60]
[388574408,1759244427891,-515.0,0.00051755,60]
[388574409,1759244427926,-515.0,0.00051755,60]
[388574410,1759244427961,-515.0,0.00051755,60]
[388574411,1759244427995,-515.0,0.00051755,60]
[388574412,1759244428027,-515.0,0.00051755,60]
[388574413,1759244428061,-515.0,0.00051755,60]
[388574414,1759244428097,-515.0,0.00051755,60]
[388574415,1759244428128,-515.0,0.00051755,60]
[388574416,1759244428159,-515.0,0.00051755,60]
[388574417,1759244428191,-515.0,0.00051755,60]
[388574418,1759244428222,-515.0,0.00051755,60]
[388574419,1759244428254,-523.48406843,0.00051755,60]
[388574420,1759244428287,-151.0,0.00051755,60]
[388574421,1759244428319,-151.0,0.00051755,60]
[388574422,1759244428351,-151.0,0.00051755,60]
[388574423,1759244428386,-151.0,0.00051755,60]
[388574424,1759244428418,-165.7763068,0.00051755,60]
[388574425,1759244428449,-198.0,0.00051755,60]
[388574426,1759244428482,-211.31893517,0.00051755,60]
[388574427,1759244428516,-151.0,0.00052044,120]
[388574428,1759244428550,-273.73581332,0.00052044,120]
[388574429,1759244428582,-500.0,0.00052044,120]
[388574430,1759244428615,-500.0,0.00052044,120]
[388574431,1759244428650,-500.0,0.00052044,120]
[388574432,1759244428685,-500.0,0.00052044,120]
[388574433,1759244428720,-500.0,0.00052044,120]
[388574434,1759244428755,-568.38220715,0.00052044,120]
[388574435,1759244428788,-500.0,0.00052044,120]
[388574436,1759244428820,-500.0,0.00052044,120]
[388574437,1759244428852,-500.0,0.00052044,120]
[388574438,1759244428885,-500.0,0.00052044,120]
[388574439,1759244428919,-500.0,0.00052044,120]
[388574440,1759244428953,-500.0,0.00052044,120]
[388574441,1759244428988,-500.0,0.00052044,120]
[388574442,1759244429022,-500.0,0.00052044,120]
[388574443,1759244429056,-500.0,0.00052044,120]
[388574444,1759244429090,-500.0,0.00052044,120]
[388574445,1759244429122,-500.0,0.00052044,120]
[388574446,1759244429155,-500.0,0.00052044,120]
[388574447,1759244429188,-500.0,0.00052044,120]
[388574448,1759244429220,-500.0,0.00052044,120]
[388574449,1759244429255,-500.0,0.00052044,120]
[388574450,1759244429289,-500.0,0.00052044,120]
[388574451,1759244429322,-151.12293649,0.00052044,120]
[388574452,1759244429357,-1849095.5962289,0.00052045,120]
[388574453,1759244429397,-127581.02535103,0.00052045,120]
[388574454,1759244429739,326.57688,0.00033263,60]
[388574455,1759244429831,161.30808,0.00033263,60]
[388574456,1759244439852,5000.0,0.00019178,2]
[388574457,1759244443420,-151.0,0.00047444,120]
[388574458,1759244443455,-151.573221,0.00047444,120]
[388574459,1759244443490,-151.0,0.00047444,120]
[388574460,1759244443524,-151.0,0.00047444,120]
[388574461,1759244443560,-151.0,0.00047444,120]
[388574462,1759244443596,-151.0,0.00047444,120]
[388574463,1759244443630,-151.0,0.00047444,120]
[388574464,1759244443666,-151.0,0.00047444,120]
[388574465,1759244443703,-151.0,0.00049444,120]
[388574466,1759244443740,-181.263586,0.00049444,120]
[388574467,1759244443776,-151.0,0.00049444,120]
[388574468,1759244443812,-186.24092,0.00049444,120]
[388574469,1759244443850,-500.0,0.00049999,120]
[388574470,1759244443886,-599.08027167,0.00049999,120]
[388574471,1759244443922,-151.0,0.00052044,120]
[388574472,1759244443959,-151.0,0.00052044,120]
[388574473,1759244443994,-245.0,0.00052044,120]
[388574474,1759244444029,-245.0,0.00052044,120]
[388574475,1759244444063,-151.0,0.00052044,120]
[388574476,1759244444100,-198.0,0.00052044,120]
[388574477,1759244444135,-211108.99010795,0.00052045,120]
[388574478,1759244444172,-1715668.4529165,0.00052045,120]
[388574479,1759244444206,-500.0,0.00052055,60]
[388574480,1759244444242,-200.0,0.00052055,60]
[388574481,1759244444277,-151.0,0.00052055,60]
[388574482,1759244444312,-151.0,0.00052055,60]
[388574483,1759244444347,-500.0,0.00052055,60]
[388574484,1759244444386,-200.0,0.00052055,60]
[388574485,1759244444420,-500.0,0.00052055,60]
[388574486,1759244444454,-170.03299837,0.00052055,60]
[388574487,1759244444489,-151.0,0.00052055,60]
[388574488,1759244444527,-200.0,0.00052055,60]
[388574489,1759244444562,-413.46167769,0.00052055,60]
[388574490,1759244444597,-151.0,0.00052055,60]
[388574491,1759244444635,-151.0,0.00052055,60]
[388574492,1759244444671,-200.0,0.00052055,60]
[388574493,1759244444708,-200.0,0.00052055,60]
[388574494,1759244444743,-151.0,0.00052055,60]
[388574495,1759244444777,-151.0,0.00052055,60]
[388574496,1759244444814,-200.0,0.00052055,60]
[388574497,1759244444850,-151.0,0.00052055,60]
[388574498,1759244444944,-151.0,0.00052055,60]
[388574499,1759244445037,-200.0,0.00052055,60]
[388574500,1759244445133,-151.0,0.00052055,60]
[388574501,1759244445223,-151.0,0.00052055,60]
[388574502,1759244445314,-200.0,0.00052055,60]
[388574503,1759244445401,-151.0,0.00052055,60]
[388574504,1759244445489,-151.0,0.00052055,60]
[388574505,1759244445577,-200.0,0.00052055,60]
[388574506,1759244445665,-151.0,0.00052055,60]
[388574507,1759244445753,-151.0,0.00052055,60]
[388574508,1759244445843,-200.0,0.00052055,60]
[388574509,1759244445932,-151.0,0.00052055,60]
[388574510,1759244446021,-151.0,0.00052055,60]
[388574511,1759244446107,-200.0,0.00052055,60]
[388574512,1759244446186,-250.0,0.00052055,60]
[388574513,1759244446267,-151.0,0.00052055,60]
[388574514,1759244446482,-151.0,0.00052055,60]
[388574515,1759244446578,-200.0,0.00052055,60]
[388574516,1759244446671,-250.0,0.00052055,60]
[388574517,1759244446763,-185.38383505,0.00052055,60]
[388574518,1759244446854,-151.0,0.00052055,60]
[388574519,1759244446944,-200.0,0.00052055,60]
[388574520,1759244447028,-250.0,0.00052055,60]
[388574521,1759244447112,-151.0,0.00052055,60]
[388574522,1759244447198,-200.0,0.00052055,60]
[388574523,1759244447283,-250.0,0.00052055,60]
[388574524,1759244447367,-151.0,0.00052055,60]
[388574525,1759244447457,-200.0,0.00052055,60]
[388574526,1759244447546,-151.0,0.00052055,60]
[388574527,1759244447633,-200.0,0.00052055,60]
[388574528,1759244447720,-151.0,0.00052055,60]
[388574529,1759244447810,-250.0,0.00052055,60]
[388574530,1759244447905,-200.0,0.00052055,60]
[388574531,1759244447992,-240.96418804,0.00052055,60]
[388574532,1759244448077,-151.0,0.00052055,60]
[388574533,1759244448164,-250.0,0.00052055,60]
[388574534,1759244448257,-156.587,0.00052055,60]
[388574535,1759244448343,-200.0,0.00052055,60]
[388574536,1759244448429,-250.0,0.00052055,60]
[388574537,1759244448516,-187.91753659,0.00052055,60]
[388574538,1759244448608,-200.0,0.00052055,60]
[388574539,1759244448698,-250.0,0.00052055,60]
[388574540,1759244448791,-259.42009054,0.00052055,60]
[388574541,1759244448880,-250.0,0.00052055,60]
[388574542,1759244448974,-250.0,0.00052055,60]
[388574543,1759244449063,-250.0,0.00052055,60]
[388574544,1759244449151,-250.0,0.00052055,60]
[388574545,1759244449241,-250.0,0.00052055,60]
[388574546,1759244449332,-250.0,0.00052055,60]
[388574547,1759244449423,-250.0,0.00052055,60]
[388574548,1759244449516,-250.0,0.00052055,60]
[388574549,1759244449613,-250.0,0.00052055,60]
[388574550,1759244449709,-250.0,0.00052055,60]
[388574551,1759244449801,-250.0,0.00052055,60]
[388574552,1759244449894,-250.0,0.00052055,60]
[388574553,1759244449987,-250.0,0.00052055,60]
[388574554,1759244450081,-250.0,0.00052055,60]
[388574556,1759244450175,-250.0,0.00052055,60]
[388574557,1759244450266,-250.0,0.00052055,60]
[388574558,1759244450354,-282.15011065,0.00052055,60]
[388574559,1759244450445,-250.0,0.00052055,60]
[388574560,1759244450534,-250.0,0.00052055,60]
[388574561,1759244450625,-250.0,0.00052055,60]
[388574562,1759244450718,-250.0,0.00052055,60]
[388574563,1759244450810,-250.0,0.00052055,60]
[388574564,1759244450899,-250.0,0.00052055,60]
[388574565,1759244450987,-250.0,0.00052055,60]
[388574566,1759244451076,-250.0,0.00052055,60]
[388574567,1759244451164,-250.0,0.00052055,60]
[388574568,1759244451252,-250.0,0.00052055,60]
[388574569,1759244451341,-250.0,0.00052055,60]
[388574570,1759244451430,-250.0,0.00052055,60]
[388574571,1759244451519,-250.0,0.00052055,60]
[388574572,1759244451609,-250.0,0.00052055,60]
[388574573,1759244451700,-255.831,0.0005248,120]
[388574574,1759244451787,-1000.0,0.00053,120]
[388574575,1759244451874,-247.0,0.00053,120]
[388574576,1759244451962,-2156.0,0.00053588,120]
[388574577,1759244452049,-630.0,0.00053588,120]
[388574578,1759244452138,-410.0,0.00053764,120]
[388574579,1759244452227,-1000.0,0.00053999,120]
[388574580,1759244452312,-200.0,0.00054,120]
[388574581,1759244452402,-680.49103197,0.00054,120]
[388574582,1759244452492,-1000.0,0.00054,120]
[388574583,1759244452582,-164.207753,0.00054444,120]
[388574584,1759244452668,-169.744896,0.00054444,120]
[388574585,1759244452757,-155.223653,0.00054444,120]
[388574586,1759244452845,-155.068752,0.00054444,120]
[388574587,1759244452929,-155.068752,0.00054444,120]
[388574588,1759244453012,-155.068752,0.00054444,120]
[388574589,1759244453095,-155.068752,0.00054444,120]
[388574590,1759244453180,-151.0,0.00054444,120]
[388574591,1759244453265,-151.0,0.00054444,120]
[388574592,1759244453349,-151.0,0.00054444,120]
[388574593,1759244453434,-151.0,0.00054444,120]
[388574594,1759244453520,-151.0,0.00054444,120]
[388574595,1759244453610,-151.0,0.00054444,120]
[388574596,1759244453704,-151.0,0.00054444,120]
[388574597,1759244453797,-151.0,0.00054444,120]
[388574598,1759244453886,-151.0,0.00054444,120]
[388574599,1759244453973,-151.0,0.00054444,120]
[388574600,1759244454061,-151.0,0.00054444,120]
[388574601,1759244454150,-976.882383,0.00054444,120]
[388574602,1759244454240,-976.882383,0.00054444,120]
[388574603,1759244454330,-976.882383,0.00054444,120]
[388574604,1759244454418,-976.882383,0.00054444,120]
[388574605,1759244454510,-151.0,0.00054444,120]
[388574606,1759244454602,-151.0,0.00054444,120]
[388574607,1759244454693,-151.0,0.00054444,120]
[388574608,1759244454787,-211.511757,0.00054444,120]
[388574609,1759244454882,-151.0,0.00054444,120]
[388574610,1759244454974,-156.350595,0.00054444,120]
[388574611,1759244455064,-151.0,0.00054495,120]
[388574612,1759244455376,151.0,0.00049444,120]
[388574613,1759244455481,151.0,0.00054444,120]
[388574614,1759244455585,500.0,0.00052055,60]
[388574615,1759244455691,500.0,0.00052055,60]
[388574616,1759244455792,151.0,0.00047444,120]
[388574617,1759244455829,731.2,0.00019178,2]
[388574618,1759244455930,151.0,0.00049444,120]
[388574619,1759244456034,500.0,0.00052055,60]
[388574620,1759244456130,151.0,0.00054444,120]
[388574621,1759244456225,151.0,0.00047444,120]
[388574622,1759244456327,151.0,0.00049444,120]
[388574623,1759244456426,500.0,0.00052055,60]
[388574624,1759244456532,151.0,0.00054444,120]
[388574625,1759244456629,198.0,0.00052044,120]
[388574626,1759244456726,151.0,0.00047444,120]
[388574627,1759244456860,500.0,0.00052055,60]
[388574628,1759244456959,151.0,0.00049444,120]
[388574629,1759244457053,151.0,0.00054444,120]
[388574630,1759244457173,500.0,0.00052055,60]
[388574631,1759244457293,500.0,0.00052055,60]
[388574632,1759244457412,500.0,0.00052055,60]
[388574633,1759244457549,500.0,0.00052055,60]
[388574634,1759244457625,740.62,0.00019178,2]
[388574635,1759244457880,5000.0,0.00019178,2]
[388574636,1759244457930,480.0,0.00019178,2]
[388574637,1759244465459,500.0,0.00019178,2]
[388574638,1759244470638,200.0,0.00033263,120]
[388574639,1759244481204,500.0,0.00019178,2]
[388574640,1759244482550,-666.50687952,0.00037,120]
[388574641,1759244482656,-1217.48160997,0.000423,120]
[388574642,1759244482756,-1217.48160997,0.000427,120]
[388574643,1759244482852,-1217.48160997,0.000431,120]
[388574644,1759244482946,-1217.48160997,0.000436,120]
[388574645,1759244483043,-163.0,0.00044,90]
[388574646,1759244483143,-1217.48160997,0.00044,120]
[388574647,1759244483237,-1217.48160997,0.000444,120]
[388574648,1759244483343,-1217.48160997,0.000449,120]
[388574649,1759244483464,-1217.48160997,0.000453,120]
[388574650,1759244483582,-1217.48160997,0.000458,120]
[388574651,1759244483690,-1217.48160997,0.000462,120]
[388574652,1759244483797,-151.0,0.00047444,120]
[388574653,1759244483903,-151.0,0.00047444,120]
[388574654,1759244484007,-151.0,0.00049444,120]
[388574655,1759244484101,-151.0,0.00049444,120]
[388574656,1759244484199,-322.322703,0.00049999,120]
[388574657,1759244484295,-422.3657596,0.00049999,120]
[388574658,1759244484394,-500.0,0.00049999,120]
[388574659,1759244484493,-500.0,0.00049999,120]
[388574660,1759244484594,-500.0,0.00049999,120]
[388574661,1759244484696,-500.0,0.00049999,120]
[388574662,1759244484796,-233.92491258,0.0005,120]
[388574663,1759244484896,-1858218.9304037,0.00052045,120]
[388574664,1759244484997,-125194.1332419,0.00052045,120]
[388574665,1759244491414,834.81,0.00019178,2]
[388574666,1759244496933,408.47019308,0.00019178,2]
[388574667,1759244499444,2266.48,0.00019178,2]
[388574668,1759244504291,192.44720753,0.00019178,2]
[388574669,1759244507121,500.0,0.00019178,2]
[388574670,1759244517734,406.48895099,0.00019178,2]
[388574671,1759244519264,500.0,0.00019178,2]
[388574672,1759244545018,500.0,0.00019178,2]
[388574673,1759244550327,500.0,0.00019178,2]
[388574674,1759244561295,522.16,0.00019178,2]
[388574675,1759244568037,229.07,0.0002191,120]
[388574677,1759244574252,500.0,0.00019178,2]
[388574678,1759244584137,500.0,0.00019178,2]
[388574679,1759244588579,162.06372103,0.00033263,60]
[388574680,1759244592729,653.75,0.00019178,2]
[388574681,1759244604642,500.0,0.00019178,2]
[388574682,1759244611890,2000.0,0.00019178,2]
[388574683,1759244612162,2000.0,0.00019178,2]
[388574684,1759244612442,2000.0,0.00019178,2]
[388574685,1759244612726,2000.0,0.00019178,2]
[388574686,1759244612994,2000.0,0.00019178,2]
[388574687,1759244613267,530.286,0.00019178,2]
[388574688,1759244624635,153.5,0.00033263,60]
[388574690,1759244628922,500.0,0.00019178,2]
[388574691,1759244651696,-300.0,0.00019449,2]
[388574692,1759244651720,-300.0,0.0001945,2]
[388574693,1759244651743,-300.0,0.0001945,2]
[388574694,1759244651765,-1200.0,0.0001945,2]
[388574695,1759244651789,-500.0,0.0001945,2]
[388574696,1759244651814,-500.0,0.0001945,2]
[388574697,1759244651837,-500.0,0.0001945,2]
[388574698,1759244651860,-213.04477543,0.0001945,2]
[388574699,1759244651886,-500.0,0.00019451,2]
[388574700,1759244651908,-500.0,0.00019451,2]
[388574701,1759244651932,-500.0,0.00019451,2]
[388574702,1759244651958,-730.0,0.00019451,2]
[388574703,1759244651981,-500.0,0.00019451,2]
[388574704,1759244652003,-480.0,0.00019451,2]
[388574705,1759244652026,-485.42526159,0.00019451,2]
[388574706,1759244652049,-1188.74,0.00019451,2]
[388574707,1759244652071,-480.0,0.00019451,2]
[388574708,1759244652093,-679.82,0.00019451,2]
[388574709,1759244652115,-613.82673432,0.00019451,2]
[388574710,1759244652138,-500.0,0.00019451,2]
[388574711,1759244652161,-500.0,0.00019451,2]
[388574712,1759244652184,-483.1979307,0.00019451,2]
[388574713,1759244652208,-697.11,0.00019451,2]
[388574714,1759244652230,-500.0,0.00019451,2]
[388574715,1759244652254,-500.0,0.00019451,2]
[388574716,1759244652277,-485.16344293,0.00019451,2]
[388574717,1759244652300,-500.0,0.00019451,2]
[388574718,1759244652326,-500.0,0.00019451,2]
[388574719,1759244652348,-500.0,0.00019451,2]
[388574720,1759244652370,-500.0,0.00019451,2]
[388574721,1759244652393,-500.0,0.00019451,2]
[388574722,1759244652417,-1106.9,0.00019451,2]
[388574723,1759244652446,-500.0,0.00019451,2]
[388574724,1759244652469,-500.0,0.00019451,2]
[388574725,1759244652493,-248.39318582,0.00019451,2]
[388574726,1759244652516,-500.0,0.00019451,2]
[388574727,1759244652540,-1321.17,0.00019451,2]
[388574728,1759244652565,-592.5,0.00019451,2]
[388574729,1759244652589,-1735.68,0.00019451,2]
[388574730,1759244652612,-500.0,0.00019451,2]
[388574731,1759244652636,-500.0,0.00019451,2]
[388574732,1759244652659,-481.5236578,0.00019451,2]
[388574733,1759244652681,-500.0,0.00019451,2]
[388574734,1759244652704,-500.0,0.00019451,2]
[388574735,1759244652728,-1201.19,0.00019451,2]
[388574736,1759244652752,-622.78,0.00019451,2]
[388574737,1759244652775,-533.03,0.00019451,2]
[388574738,1759244652797,-500.0,0.00019451,2]
[388574739,1759244652819,-500.0,0.00019451,2]
[388574740,1759244652842,-500.0,0.00019451,2]
[388574741,1759244652865,-1660.69,0.00019451,2]
[388574742,1759244652889,-198.15053711,0.00019451,2]
[388574743,1759244652914,-311.44702624,0.00019451,2]
[388574744,1759244652937,-2231.18,0.00019451,2]
[388574745,1759244652961,-2870.5,0.00019451,2]
[388574746,1759244652987,-500.0,0.00019451,2]
[388574747,1759244653010,-306.17723475,0.00019451,2]
[388574748,1759244653033,-500.0,0.00019451,2]
[388574749,1759244653056,-500.0,0.00019451,2]
[388574750,1759244653080,-441.52887514,0.00019451,2]
[388574751,1759244653102,-482.60217102,0.00019451,2]
[388574752,1759244653255,-500.0,0.00019451,2]
[388574753,1759244653278,-514.27,0.00019451,2]
[388574754,1759244653301,-481.52866665,0.00019451,2]
[388574755,1759244653325,-500.0,0.00019451,2]
[388574756,1759244653348,-1168.74,0.00019451,2]
[388574757,1759244653373,-500.0,0.00019451,2]
[388574758,1759244653395,-500.0,0.00019451,2]
[388574759,1759244653417,-500.0,0.00019451,2]
[388574760,1759244653444,-500.0,0.00019451,2]
[388574761,1759244653467,-483.47,0.00019451,2]
[388574762,1759244653489,-500.0,0.00019451,2]
[388574763,1759244653514,-500.0,0.00019451,2]
[388574764,1759244653537,-500.0,0.00019451,2]
[388574765,1759244653560,-500.0,0.00019451,2]
[388574766,1759244653584,-500.0,0.00019451,2]
[388574767,1759244653608,-500.0,0.00019451,2]
[388574768,1759244653632,-585.71,0.00019451,2]
[388574769,1759244653659,-500.0,0.00019451,2]
[388574770,1759244653685,-500.0,0.00019451,2]
[388574771,1759244653709,-503.71,0.00019451,2]
[388574772,1759244653734,-2474.75,0.00019451,2]
[388574773,1759244653758,-500.0,0.00019451,2]
[388574774,1759244653783,-500.0,0.00019451,2]
[388574775,1759244653809,-484.78840986,0.00019451,2]
[388574776,1759244653833,-500.0,0.00019451,2]
[388574777,1759244653858,-500.0,0.00019451,2]
[388574778,1759244653882,-500.0,0.00019451,2]
[388574779,1759244653908,-500.0,0.00019451,2]
[388574780,1759244653933,-322.322703,0.00019451,2]
[388574781,1759244653960,-500.0,0.00019451,2]
[388574782,1759244653986,-500.0,0.00019451,2]
[388574783,1759244654009,-500.0,0.00019451,2]
[388574784,1759244654038,-500.0,0.00019451,2]
[388574785,1759244654064,-500.0,0.00019451,2]
[388574786,1759244654089,-500.0,0.00019451,2]
[388574787,1759244654114,-206.43380938,0.00019451,2]
[388574788,1759244654137,-1488.13,0.00019451,2]
[388574789,1759244654161,-942.64,0.00019451,2]
[388574790,1759244654184,-500.0,0.00019451,2]
[388574791,1759244654207,-500.0,0.00019451,2]
[388574792,1759244654232,-1658.8,0.00019451,2]
[388574793,1759244654255,-578.34,0.00019451,2]
[388574794,1759244654277,-500.0,0.00019451,2]
[388574795,1759244654305,-442.6416781,0.00019451,2]
[388574796,1759244654328,-598.89,0.00019451,2]
[388574797,1759244654351,-500.0,0.00019451,2]
[388574798,1759244654373,-487.88347098,0.00019451,2]
[388574799,1759244654398,-500.0,0.00019452,2]
[388574800,1759244654420,-500.0,0.00019452,2]
[388574801,1759244654448,-500.0,0.00019452,2]
[388574802,1759244654470,-500.0,0.00019452,2]
[388574803,1759244654495,-500.0,0.00019452,2]
[388574804,1759244654518,-500.0,0.00019452,2]
[388574805,1759244654543,-500.0,0.00019452,2]
[388574806,1759244654567,-500.0,0.00019452,2]
[388574807,1759244654592,-500.0,0.00019452,2]
[388574808,1759244654615,-500.0,0.00019452,2]
[388574809,1759244654639,-500.0,0.00019452,2]
[388574810,1759244654663,-500.0,0.00019452,2]
[388574811,1759244654686,-500.0,0.00019452,2]
[388574812,1759244654711,-500.0,0.00019452,2]
[388574813,1759244654735,-462.85807933,0.00019452,2]
[388574814,1759244654759,-544.26,0.00019452,2]
[388574815,1759244654785,-500.0,0.00019452,2]
[388574816,1759244654809,-731.48,0.00019452,2]
[388574817,1759244654834,-500.0,0.00019452,2]
[388574818,1759244654860,-658.63,0.00019452,2]
[388574819,1759244654883,-1515.65,0.00019452,2]
[388574820,1759244654907,-500.0,0.00019452,2]
[388574821,1759244654930,-500.0,0.00019452,2]
[388574822,1759244654954,-500.0,0.00019452,2]
[388574823,1759244654977,-652.36,0.00019452,2]
[388574824,1759244655000,-731.2,0.00019452,2]
[388574825,1759244655023,-740.62,0.00019452,2]
[388574826,1759244655046,-500.0,0.00019452,2]
[388574827,1759244655068,-500.0,0.00019452,2]
[388574828,1759244655092,-834.81,0.00019452,2]
[388574829,1759244655114,-2266.48,0.00019452,2]
[388574830,1759244655137,-500.0,0.00019452,2]
[388574831,1759244655161,-500.0,0.00019452,2]
[388574832,1759244655185,-500.0,0.00019452,2]
[388574833,1759244655208,-500.0,0.00019452,2]
[388574834,1759244655231,-522.16,0.00019452,2]
[388574835,1759244655254,-500.0,0.00019452,2]
[388574836,1759244655278,-500.0,0.00019452,2]
[388574837,1759244655302,-653.75,0.00019452,2]
[388574838,1759244655326,-500.0,0.00019452,2]
[388574839,1759244655349,-500.0,0.00019452,2]